[Event "Early-Titled-Tuesday-Blitz-April-23-2024"]
[Site "Chess.com"]
[Date "2024.04.23"]
[Round "1"]
[White "vasblesk"]
[Black "Eliwood44"]
[Result "1/2-1/2"]
[WhiteElo "2802"]
[BlackElo "2465"]
[TimeControl "180+1"]
[EndTime "8:07:45 PDT"]
[Termination "Game drawn - insufficient material"]

1. d4 {[%clk 0:02:42.7]} 1... Nf6 {[%clk 0:02:55.7]} 2. c4 {[%clk 0:02:37.7]}
2... e6 {[%clk 0:02:54.9]} 3. g3 {[%clk 0:02:36.7]} 3... d5 {[%clk 0:02:51.9]}
4. Bg2 {[%clk 0:02:36.3]} 4... Bb4+ {[%clk 0:02:52.5]} 5. Bd2 {[%clk 0:02:32.8]}
5... Be7 {[%clk 0:02:52.7]} 6. Nf3 {[%clk 0:02:33.1]} 6... O-O {[%clk
0:02:52.9]} 7. O-O {[%clk 0:02:34]} 7... c6 {[%clk 0:02:52.7]} 8. Qc2 {[%clk
0:02:34.5]} 8... b6 {[%clk 0:02:53]} 9. Bf4 {[%clk 0:02:31.9]} 9... Nh5 {[%clk
0:02:51.8]} 10. Bc1 {[%clk 0:02:31.9]} 10... Nf6 {[%clk 0:02:49.8]} 11. Nbd2
{[%clk 0:02:32.3]} 11... Nbd7 {[%clk 0:02:49.3]} 12. e4 {[%clk 0:02:29.6]} 12...
dxe4 {[%clk 0:02:45.9]} 13. Nxe4 {[%clk 0:02:29.9]} 13... Bb7 {[%clk 0:02:44.3]}
14. Rd1 {[%clk 0:02:09.9]} 14... Nxe4 {[%clk 0:02:41.6]} 15. Qxe4 {[%clk
0:02:09.5]} 15... Nf6 {[%clk 0:02:41.9]} 16. Qc2 {[%clk 0:02:09.6]} 16... Qc8
{[%clk 0:02:40.1]} 17. c5 {[%clk 0:02:08.5]} 17... Rd8 {[%clk 0:02:37.6]} 18.
Bg5 {[%clk 0:01:57.6]} 18... h6 {[%clk 0:02:31.7]} 19. Bxf6 {[%clk 0:01:57.8]}
19... Bxf6 {[%clk 0:02:32.6]} 20. Rac1 {[%clk 0:01:58.1]} 20... Qc7 {[%clk
0:02:28.1]} 21. Qe4 {[%clk 0:01:52.1]} 21... Rd5 {[%clk 0:02:25.1]} 22. b4
{[%clk 0:01:42.2]} 22... a5 {[%clk 0:02:23.5]} 23. a3 {[%clk 0:01:31.2]} 23...
axb4 {[%clk 0:02:23.2]} 24. axb4 {[%clk 0:01:32.1]} 24... Rad8 {[%clk
0:02:20.4]} 25. h4 {[%clk 0:01:23.9]} 25... bxc5 {[%clk 0:02:18.8]} 26. Rxc5
{[%clk 0:01:21.3]} 26... Qb6 {[%clk 0:02:13.9]} 27. Rxd5 {[%clk 0:01:13.9]}
27... cxd5 {[%clk 0:02:12.4]} 28. Qe1 {[%clk 0:01:09.9]} 28... Ba6 {[%clk
0:02:08.7]} 29. Ne5 {[%clk 0:01:08.3]} 29... Bxe5 {[%clk 0:02:05.5]} 30. dxe5
{[%clk 0:01:07.2]} 30... Rc8 {[%clk 0:02:04.1]} 31. Rb1 {[%clk 0:01:02.1]} 31...
Rc2 {[%clk 0:02:02.1]} 32. b5 {[%clk 0:01:02.2]} 32... Bc8 {[%clk 0:01:56.5]}
33. Qe3 {[%clk 0:01:00.2]} 33... Qxe3 {[%clk 0:01:47.5]} 34. fxe3 {[%clk
0:01:01.1]} 34... Kf8 {[%clk 0:01:44]} 35. Rb4 {[%clk 0:00:51.8]} 35... Ke7
{[%clk 0:01:42.2]} 36. b6 {[%clk 0:00:45.3]} 36... Bb7 {[%clk 0:01:42.2]} 37.
Bf1 {[%clk 0:00:32.4]} 37... Rc1 {[%clk 0:01:32.7]} 38. Kf2 {[%clk 0:00:29.5]}
38... Rc2+ {[%clk 0:01:32.4]} 39. Be2 {[%clk 0:00:22.9]} 39... Kd8 {[%clk
0:01:20.1]} 40. Ke1 {[%clk 0:00:22.7]} 40... f5 {[%clk 0:01:10.6]} 41. exf6
{[%clk 0:00:20.3]} 41... gxf6 {[%clk 0:01:11.5]} 42. Rg4 {[%clk 0:00:19]} 42...
Rb2 {[%clk 0:01:06.2]} 43. Rg8+ {[%clk 0:00:12.5]} 43... Kd7 {[%clk 0:01:06]}
44. Rg7+ {[%clk 0:00:12.8]} 44... Kc6 {[%clk 0:01:06.2]} 45. Rg6 {[%clk
0:00:13.1]} 45... Kxb6 {[%clk 0:00:58]} 46. Rxf6 {[%clk 0:00:12.6]} 46... Bc8
{[%clk 0:00:55.2]} 47. Rxh6 {[%clk 0:00:12.5]} 47... Kc5 {[%clk 0:00:55.5]} 48.
Bg4 {[%clk 0:00:10.5]} 48... Rg2 {[%clk 0:00:50.4]} 49. Bxe6 {[%clk 0:00:08.2]}
49... Bxe6 {[%clk 0:00:50.5]} 50. Rxe6 {[%clk 0:00:09.1]} 50... Rxg3 {[%clk
0:00:51.1]} 51. Kf2 {[%clk 0:00:09.6]} 51... Rh3 {[%clk 0:00:50.9]} 52. Rh6
{[%clk 0:00:08.3]} 52... Kc4 {[%clk 0:00:49.3]} 53. h5 {[%clk 0:00:06.4]} 53...
Kd3 {[%clk 0:00:48.7]} 54. Kg2 {[%clk 0:00:05.8]} 54... Rxe3 {[%clk 0:00:48]}
55. Rd6 {[%clk 0:00:06.1]} 55... Re5 {[%clk 0:00:47.8]} 56. h6 {[%clk
0:00:06.8]} 56... d4 {[%clk 0:00:48]} 57. Kf3 {[%clk 0:00:06.5]} 57... Rh5
{[%clk 0:00:46.5]} 58. Kg4 {[%clk 0:00:06.9]} 58... Rh1 {[%clk 0:00:46.4]} 59.
Kg5 {[%clk 0:00:07.1]} 59... Ke3 {[%clk 0:00:46.5]} 60. Re6+ {[%clk 0:00:06.8]}
60... Kd2 {[%clk 0:00:46.5]} 61. Kg6 {[%clk 0:00:07]} 61... d3 {[%clk
0:00:46.5]} 62. h7 {[%clk 0:00:07.5]} 62... Rxh7 {[%clk 0:00:44.7]} 63. Kxh7
{[%clk 0:00:07.6]} 63... Kc1 {[%clk 0:00:45.3]} 64. Rc6+ {[%clk 0:00:07.9]}
64... Kb2 {[%clk 0:00:44.2]} 65. Rd6 {[%clk 0:00:08.3]} 65... Kc2 {[%clk
0:00:44.5]} 66. Kg6 {[%clk 0:00:08.3]} 66... d2 {[%clk 0:00:44.7]} 67. Rc6+
{[%clk 0:00:09.2]} 67... Kb2 {[%clk 0:00:44.4]} 68. Rd6 {[%clk 0:00:10.1]} 68...
Kc2 {[%clk 0:00:44.9]} 69. Rxd2+ {[%clk 0:00:09.7]} 69... Kxd2 {[%clk
0:00:45.3]} 1/2-1/2

[Event "Early-Titled-Tuesday-Blitz-April-23-2024"]
[Site "Chess.com"]
[Date "2024.04.23"]
[Round "1"]
[White "RasSanti"]
[Black "SlavenPastar"]
[Result "0-1"]
[WhiteElo "2281"]
[BlackElo "2625"]
[TimeControl "180+1"]
[EndTime "8:07:45 PDT"]
[Termination "SlavenPastar won by checkmate"]

1. d4 {[%clk 0:03:00]} 1... b6 {[%clk 0:03:00]} 2. c4 {[%clk 0:02:59.4]} 2...
Bb7 {[%clk 0:02:59.9]} 3. Nc3 {[%clk 0:03:00.1]} 3... g6 {[%clk 0:03:00]} 4. e4
{[%clk 0:02:59.7]} 4... Bg7 {[%clk 0:02:58.9]} 5. Be3 {[%clk 0:02:50.5]} 5... d6
{[%clk 0:02:58.6]} 6. Qd2 {[%clk 0:02:47.1]} 6... Nd7 {[%clk 0:02:57.5]} 7. h4
{[%clk 0:02:44.3]} 7... h5 {[%clk 0:02:48.5]} 8. O-O-O {[%clk 0:02:41.7]} 8...
e6 {[%clk 0:02:41.8]} 9. Bd3 {[%clk 0:02:35.3]} 9... a6 {[%clk 0:02:35.6]} 10.
Kb1 {[%clk 0:02:34.4]} 10... Qe7 {[%clk 0:02:35.3]} 11. Nh3 {[%clk 0:02:27.2]}
11... O-O-O {[%clk 0:02:29]} 12. a3 {[%clk 0:02:20]} 12... Kb8 {[%clk 0:02:29]}
13. Ng5 {[%clk 0:02:14.4]} 13... f6 {[%clk 0:02:19.2]} 14. Nh3 {[%clk
0:02:11.7]} 14... Bh6 {[%clk 0:02:16.9]} 15. f4 {[%clk 0:02:09.5]} 15... Bg7
{[%clk 0:02:17.2]} 16. Rhg1 {[%clk 0:02:02.2]} 16... Nh6 {[%clk 0:02:16]} 17.
Nf2 {[%clk 0:02:01.9]} 17... Ng4 {[%clk 0:02:14.2]} 18. Nxg4 {[%clk 0:02:00.8]}
18... hxg4 {[%clk 0:02:15.1]} 19. g3 {[%clk 0:01:59.6]} 19... f5 {[%clk
0:02:10.3]} 20. Rge1 {[%clk 0:01:51.4]} 20... c5 {[%clk 0:01:56.5]} 21. d5
{[%clk 0:01:43]} 21... exd5 {[%clk 0:01:40.6]} 22. exd5 {[%clk 0:01:29.1]} 22...
Rhe8 {[%clk 0:01:29]} 23. Bxc5 {[%clk 0:01:23.1]} 23... Nxc5 {[%clk 0:01:06.5]}
24. Rxe7 {[%clk 0:01:20.8]} 24... Rxe7 {[%clk 0:01:07.4]} 25. Bc2 {[%clk
0:01:07.6]} 25... Rde8 {[%clk 0:01:06.3]} 26. Rh1 {[%clk 0:00:54.6]} 26... Re3
{[%clk 0:01:06]} 27. h5 {[%clk 0:00:46.5]} 27... gxh5 {[%clk 0:01:02.6]} 28.
Bxf5 {[%clk 0:00:39]} 28... Nb3 {[%clk 0:00:55.4]} 29. Qd1 {[%clk 0:00:21.3]}
29... Nd4 {[%clk 0:00:55.3]} 30. Bg6 {[%clk 0:00:19]} 30... R8e7 {[%clk
0:00:50.7]} 31. Ka2 {[%clk 0:00:18.9]} 31... Nf3 {[%clk 0:00:43.9]} 32. Rxh5
{[%clk 0:00:16.1]} 32... Bxc3 {[%clk 0:00:39.6]} 33. bxc3 {[%clk 0:00:13.6]}
33... Re2+ {[%clk 0:00:38.5]} 34. Kb3 {[%clk 0:00:12.2]} 34... Nd2+ {[%clk
0:00:28.3]} 35. Kb4 {[%clk 0:00:10.8]} 35... Ka7 {[%clk 0:00:22.6]} 36. Rh7
{[%clk 0:00:09.2]} 36... a5+ {[%clk 0:00:22.2]} 37. Ka4 {[%clk 0:00:08.5]} 37...
R7e3 {[%clk 0:00:14.6]} 38. Rxb7+ {[%clk 0:00:07.2]} 38... Kxb7 {[%clk
0:00:14.5]} 39. Bf5 {[%clk 0:00:06.1]} 39... Ne4 {[%clk 0:00:14.1]} 40. Bxe4
{[%clk 0:00:05.3]} 40... Rxe4 {[%clk 0:00:15]} 41. Qd3 {[%clk 0:00:05.3]} 41...
R2e3 {[%clk 0:00:14.6]} 42. Qf1 {[%clk 0:00:05.7]} 42... Rxc3 {[%clk 0:00:14.7]}
43. f5 {[%clk 0:00:06]} 43... Rexc4+ {[%clk 0:00:11.9]} 44. Kb5 {[%clk
0:00:03.8]} 44... Rc5+ {[%clk 0:00:11.6]} 45. Ka4 {[%clk 0:00:04.5]} 45... Rxd5
{[%clk 0:00:05.5]} 46. f6 {[%clk 0:00:03.9]} 46... Rd4+ {[%clk 0:00:05.9]} 47.
Kb5 {[%clk 0:00:03.4]} 47... Rc5# {[%clk 0:00:06.8]} 0-1

[Event "Early-Titled-Tuesday-Blitz-April-23-2024"]
[Site "Chess.com"]
[Date "2024.04.23"]
[Round "1"]
[White "gabduschew"]
[Black "bangchess21"]
[Result "0-1"]
[WhiteElo "2451"]
[BlackElo "2793"]
[TimeControl "180+1"]
[EndTime "8:07:48 PDT"]
[Termination "bangchess21 won on time"]

1. b3 {[%clk 0:03:00]} 1... c5 {[%clk 0:02:54.1]} 2. Bb2 {[%clk 0:02:56.4]} 2...
Nc6 {[%clk 0:02:53.2]} 3. f4 {[%clk 0:02:55.1]} 3... d6 {[%clk 0:02:52]} 4. Nf3
{[%clk 0:02:54.5]} 4... Nf6 {[%clk 0:02:49.1]} 5. e3 {[%clk 0:02:53.2]} 5... g6
{[%clk 0:02:48.8]} 6. Bb5 {[%clk 0:02:48.3]} 6... Bg7 {[%clk 0:02:49.2]} 7.
Bxc6+ {[%clk 0:02:46.4]} 7... bxc6 {[%clk 0:02:48.9]} 8. O-O {[%clk 0:02:46.7]}
8... O-O {[%clk 0:02:49.4]} 9. c4 {[%clk 0:02:43.9]} 9... Re8 {[%clk 0:02:33.9]}
10. Nc3 {[%clk 0:02:42.4]} 10... Bf5 {[%clk 0:02:29.5]} 11. d3 {[%clk
0:02:40.2]} 11... e5 {[%clk 0:02:15.8]} 12. fxe5 {[%clk 0:02:33]} 12... dxe5
{[%clk 0:02:16.7]} 13. e4 {[%clk 0:02:30.3]} 13... Bg4 {[%clk 0:02:15.9]} 14.
Na4 {[%clk 0:02:29.7]} 14... Nd7 {[%clk 0:02:13.8]} 15. Qd2 {[%clk 0:02:20.8]}
15... f5 {[%clk 0:02:04.7]} 16. Rae1 {[%clk 0:01:57.7]} 16... Qc7 {[%clk
0:01:50.5]} 17. h3 {[%clk 0:01:49]} 17... Bh5 {[%clk 0:01:48.8]} 18. Qg5 {[%clk
0:01:44.4]} 18... f4 {[%clk 0:01:37.5]} 19. g4 {[%clk 0:01:38.9]} 19... fxg3
{[%clk 0:01:25.5]} 20. Qxg3 {[%clk 0:01:38]} 20... Qd6 {[%clk 0:01:19.2]} 21.
Nh4 {[%clk 0:01:26.8]} 21... Rf8 {[%clk 0:01:16.9]} 22. Bc3 {[%clk 0:01:19.6]}
22... Rf4 {[%clk 0:01:02.8]} 23. Ng2 {[%clk 0:01:13]} 23... Rxf1+ {[%clk
0:00:44.5]} 24. Rxf1 {[%clk 0:01:12.8]} 24... Rf8 {[%clk 0:00:34.9]} 25. Rxf8+
{[%clk 0:01:10.4]} 25... Nxf8 {[%clk 0:00:35.8]} 26. Qe3 {[%clk 0:01:07.8]}
26... Ne6 {[%clk 0:00:35.2]} 27. Bb2 {[%clk 0:01:02]} 27... Qf8 {[%clk
0:00:26.6]} 28. Ba3 {[%clk 0:00:58.2]} 28... Nd4 {[%clk 0:00:26.5]} 29. Bxc5
{[%clk 0:00:53.5]} 29... Ne2+ {[%clk 0:00:27.1]} 30. Kh2 {[%clk 0:00:49.5]}
30... Qf1 {[%clk 0:00:25.2]} 31. Qf2 {[%clk 0:00:40.6]} 31... Qd1 {[%clk
0:00:20.9]} 32. Bxa7 {[%clk 0:00:36.2]} 32... Qxd3 {[%clk 0:00:20]} 33. Nc5
{[%clk 0:00:34.9]} 33... Qd6 {[%clk 0:00:15]} 34. Bb6 {[%clk 0:00:23.1]} 34...
Nd4 {[%clk 0:00:14.7]} 35. a4 {[%clk 0:00:17.5]} 35... Nf3+ {[%clk 0:00:15.1]}
36. Kg3 {[%clk 0:00:15.1]} 36... Qe7 {[%clk 0:00:15.6]} 37. h4 {[%clk
0:00:13.5]} 37... Bf6 {[%clk 0:00:16.2]} 38. Kh3 {[%clk 0:00:09.4]} 38... Qe8
{[%clk 0:00:15.7]} 39. Ne3 {[%clk 0:00:05]} 39... Qc8+ {[%clk 0:00:15.7]} 40.
Nf5 {[%clk 0:00:03.4]} 40... gxf5 {[%clk 0:00:15.5]} 41. Qg3+ {[%clk 0:00:03]}
41... Bg4+ {[%clk 0:00:15.3]} 42. Kg2 {[%clk 0:00:02.8]} 42... Bxh4 {[%clk
0:00:15.1]} 0-1

[Event "Early-Titled-Tuesday-Blitz-April-23-2024"]
[Site "Chess.com"]
[Date "2024.04.23"]
[Round "1"]
[White "oggy1984"]
[Black "Skatchkov_V"]
[Result "0-1"]
[WhiteElo "2365"]
[BlackElo "2674"]
[TimeControl "180+1"]
[EndTime "8:07:51 PDT"]
[Termination "Skatchkov_V won on time"]

1. e4 {[%clk 0:02:59.2]} 1... e5 {[%clk 0:02:58.2]} 2. d4 {[%clk 0:02:58.1]}
2... exd4 {[%clk 0:02:58.3]} 3. Qxd4 {[%clk 0:02:59]} 3... Nc6 {[%clk
0:02:58.6]} 4. Qe3 {[%clk 0:02:58.9]} 4... Nf6 {[%clk 0:02:57.7]} 5. Nc3 {[%clk
0:02:58.3]} 5... Bb4 {[%clk 0:02:57.5]} 6. Bd2 {[%clk 0:02:58.2]} 6... O-O
{[%clk 0:02:57]} 7. O-O-O {[%clk 0:02:58.1]} 7... Re8 {[%clk 0:02:57.7]} 8. Qg3
{[%clk 0:02:58.1]} 8... Rxe4 {[%clk 0:02:56]} 9. f3 {[%clk 0:02:52]} 9... Re8
{[%clk 0:02:45.5]} 10. Bd3 {[%clk 0:02:50.2]} 10... d5 {[%clk 0:02:44.9]} 11.
Nge2 {[%clk 0:02:18.2]} 11... Ne5 {[%clk 0:02:40.4]} 12. Nf4 {[%clk 0:01:57.5]}
12... Nxd3+ {[%clk 0:02:30.5]} 13. Nxd3 {[%clk 0:01:57.4]} 13... Bd6 {[%clk
0:02:30.7]} 14. Qh4 {[%clk 0:01:50.3]} 14... c6 {[%clk 0:02:23.8]} 15. Bg5
{[%clk 0:01:38.1]} 15... h6 {[%clk 0:02:23.7]} 16. Bxf6 {[%clk 0:01:35.7]} 16...
Qxf6 {[%clk 0:02:24.6]} 17. Qxf6 {[%clk 0:01:35.4]} 17... gxf6 {[%clk
0:02:25.5]} 18. g4 {[%clk 0:01:32.4]} 18... f5 {[%clk 0:02:24.5]} 19. h3 {[%clk
0:01:28.3]} 19... Bd7 {[%clk 0:02:21.2]} 20. Rhg1 {[%clk 0:01:21.1]} 20... Kh7
{[%clk 0:02:16.8]} 21. g5 {[%clk 0:01:14.2]} 21... Re3 {[%clk 0:02:08.4]} 22.
gxh6 {[%clk 0:01:10.1]} 22... Kxh6 {[%clk 0:02:04.7]} 23. Rdf1 {[%clk
0:01:07.9]} 23... Ree8 {[%clk 0:01:42.4]} 24. f4 {[%clk 0:01:03]} 24... Rg8
{[%clk 0:01:42.6]} 25. Ne5 {[%clk 0:01:00.3]} 25... Be6 {[%clk 0:01:37.6]} 26.
Ne2 {[%clk 0:00:57.1]} 26... Bc5 {[%clk 0:01:32.1]} 27. Rxg8 {[%clk 0:00:35.7]}
27... Rxg8 {[%clk 0:01:33]} 28. Kd2 {[%clk 0:00:31.2]} 28... Rg2 {[%clk
0:01:32.4]} 29. c3 {[%clk 0:00:25.5]} 29... d4 {[%clk 0:01:17.9]} 30. Nd3 {[%clk
0:00:15.4]} 30... dxc3+ {[%clk 0:01:01]} 31. bxc3 {[%clk 0:00:16.3]} 31... Bb6
{[%clk 0:00:55.7]} 32. a4 {[%clk 0:00:15.5]} 32... Rh2 {[%clk 0:00:54.4]} 33.
Rf3 {[%clk 0:00:14.5]} 33... Bb3 {[%clk 0:00:43.3]} 34. Rg3 {[%clk 0:00:13.3]}
34... Bxa4 {[%clk 0:00:37.1]} 35. Ne5 {[%clk 0:00:12.9]} 35... Bb3 {[%clk
0:00:35.5]} 36. c4 {[%clk 0:00:12.7]} 36... Ba2 {[%clk 0:00:20.1]} 37. Nxf7+
{[%clk 0:00:12]} 37... Kh5 {[%clk 0:00:20.7]} 38. Ne5 {[%clk 0:00:09.2]} 38...
Ba5+ {[%clk 0:00:19]} 39. Kd3 {[%clk 0:00:06.8]} 39... Bb1+ {[%clk 0:00:19.1]}
40. Ke3 {[%clk 0:00:03.9]} 40... Bb6+ {[%clk 0:00:16.9]} 41. Kd2 {[%clk
0:00:04.5]} 41... Bd8 {[%clk 0:00:17.1]} 42. Rg8 {[%clk 0:00:02.4]} 42... Bf6
{[%clk 0:00:15.6]} 43. Rf8 {[%clk 0:00:02]} 43... Bxe5 {[%clk 0:00:13.8]} 44.
fxe5 {[%clk 0:00:02.9]} 44... Rxh3 {[%clk 0:00:14.7]} 45. e6 {[%clk 0:00:02.9]}
45... Rd3+ {[%clk 0:00:14.7]} 46. Ke1 {[%clk 0:00:03.2]} 46... Re3 {[%clk
0:00:15.3]} 47. Kd2 {[%clk 0:00:02.5]} 47... Re4 {[%clk 0:00:13.9]} 0-1

[Event "Early-Titled-Tuesday-Blitz-April-23-2024"]
[Site "Chess.com"]
[Date "2024.04.23"]
[Round "1"]
[White "kuchma777"]
[Black "Matibar"]
[Result "0-1"]
[WhiteElo "2480"]
[BlackElo "2843"]
[TimeControl "180+1"]
[EndTime "8:07:52 PDT"]
[Termination "Matibar won on time"]

1. e4 {[%clk 0:03:00.9]} 1... e6 {[%clk 0:02:36.5]} 2. d4 {[%clk 0:02:59.4]}
2... d5 {[%clk 0:02:37.4]} 3. Nd2 {[%clk 0:02:59.9]} 3... h6 {[%clk 0:02:34.6]}
4. Ngf3 {[%clk 0:02:59]} 4... Nf6 {[%clk 0:02:33.8]} 5. Bd3 {[%clk 0:02:58.7]}
5... c5 {[%clk 0:02:32.6]} 6. c3 {[%clk 0:02:58.6]} 6... Nc6 {[%clk 0:02:31.4]}
7. O-O {[%clk 0:02:50.8]} 7... cxd4 {[%clk 0:02:25.6]} 8. cxd4 {[%clk
0:02:50.4]} 8... dxe4 {[%clk 0:02:25.3]} 9. Nxe4 {[%clk 0:02:50.4]} 9... Be7
{[%clk 0:02:25.3]} 10. a3 {[%clk 0:02:28.6]} 10... O-O {[%clk 0:02:24.6]} 11.
Nxf6+ {[%clk 0:02:28.1]} 11... Bxf6 {[%clk 0:02:24.1]} 12. Be3 {[%clk
0:02:28.7]} 12... b6 {[%clk 0:02:22.7]} 13. Bc2 {[%clk 0:02:21.4]} 13... Ba6
{[%clk 0:02:20.1]} 14. Re1 {[%clk 0:02:19.1]} 14... Rc8 {[%clk 0:02:19.9]} 15.
Rc1 {[%clk 0:02:11.2]} 15... Qd6 {[%clk 0:02:06.7]} 16. Be4 {[%clk 0:01:44.2]}
16... Ne7 {[%clk 0:01:47.1]} 17. Qa4 {[%clk 0:01:28.7]} 17... b5 {[%clk
0:01:46.4]} 18. Qa5 {[%clk 0:01:28.5]} 18... Qb6 {[%clk 0:01:13.6]} 19. Qxb6
{[%clk 0:01:17.6]} 19... axb6 {[%clk 0:01:13.1]} 20. Ne5 {[%clk 0:01:18]} 20...
Rcd8 {[%clk 0:00:50.1]} 21. Red1 {[%clk 0:00:24.6]} 21... Nd5 {[%clk 0:00:47.4]}
22. Bxd5 {[%clk 0:00:22.4]} 22... Rxd5 {[%clk 0:00:46.7]} 23. Nc6 {[%clk
0:00:17.3]} 23... Bb7 {[%clk 0:00:44.9]} 24. Nb4 {[%clk 0:00:17]} 24... Rd7
{[%clk 0:00:44.6]} 25. f3 {[%clk 0:00:14.4]} 25... Rfd8 {[%clk 0:00:40.6]} 26.
Kf2 {[%clk 0:00:14.9]} 26... Bd5 {[%clk 0:00:27.4]} 27. Nxd5 {[%clk 0:00:13.9]}
27... Rxd5 {[%clk 0:00:28.3]} 28. Rc6 {[%clk 0:00:08.4]} 28... e5 {[%clk
0:00:25.5]} 29. Rxb6 {[%clk 0:00:07.8]} 29... exd4 {[%clk 0:00:25.7]} 30. Bf4
{[%clk 0:00:06.8]} 30... d3 {[%clk 0:00:26.6]} 31. Rd2 {[%clk 0:00:06.5]} 31...
Bd4+ {[%clk 0:00:25.9]} 32. Be3 {[%clk 0:00:07]} 32... Bxb6 {[%clk 0:00:25.5]}
33. Bxb6 {[%clk 0:00:07.9]} 33... Rc8 {[%clk 0:00:25.6]} 34. Ke3 {[%clk
0:00:02.8]} 34... Rc2 {[%clk 0:00:22.7]} 35. Ba5 {[%clk 0:00:03]} 35... f5
{[%clk 0:00:20.4]} 36. Bc3 {[%clk 0:00:01.7]} 36... Rxd2 {[%clk 0:00:20.2]} 37.
Bxd2 {[%clk 0:00:01.5]} 37... Kf7 {[%clk 0:00:20.6]} 38. Bc3 {[%clk 0:00:02.2]}
38... g5 {[%clk 0:00:20.6]} 39. g3 {[%clk 0:00:02.3]} 39... Kg6 {[%clk
0:00:19.5]} 40. f4 {[%clk 0:00:02.3]} 40... g4 {[%clk 0:00:19.2]} 41. Kd2 {[%clk
0:00:02.1]} 41... h5 {[%clk 0:00:19.5]} 42. Be5 {[%clk 0:00:02.4]} 42... Kf7
{[%clk 0:00:17.3]} 43. Bc3 {[%clk 0:00:03]} 43... Ke6 {[%clk 0:00:17.4]} 44. Ke3
{[%clk 0:00:03.5]} 44... Kd6 {[%clk 0:00:16.9]} 45. Bb4+ {[%clk 0:00:04]} 45...
Kc6 {[%clk 0:00:17.3]} 46. Kd2 {[%clk 0:00:03.3]} 46... Rd4 {[%clk 0:00:17.7]}
47. Ke3 {[%clk 0:00:03.3]} 47... Kd5 {[%clk 0:00:17.5]} 48. Bc3 {[%clk
0:00:02.8]} 48... Re4+ {[%clk 0:00:17.2]} 49. Kxd3 {[%clk 0:00:03.2]} 49... Re7
{[%clk 0:00:17.4]} 50. b3 {[%clk 0:00:02.6]} 50... Ra7 {[%clk 0:00:17.1]} 51.
Bb4 {[%clk 0:00:02.4]} 51... Ra8 {[%clk 0:00:17.6]} 52. Ke3 {[%clk 0:00:02.6]}
52... h4 {[%clk 0:00:17.7]} 53. Kd3 {[%clk 0:00:01.8]} 53... h3 {[%clk 0:00:16]}
0-1

[Event "Early-Titled-Tuesday-Blitz-April-23-2024"]
[Site "Chess.com"]
[Date "2024.04.23"]
[Round "1"]
[White "BardArtem"]
[Black "kylelancman"]
[Result "1-0"]
[WhiteElo "2862"]
[BlackElo "2486"]
[TimeControl "180+1"]
[EndTime "8:07:54 PDT"]
[Termination "BardArtem won by resignation"]

1. e4 {[%clk 0:03:00.9]} 1... c5 {[%clk 0:03:00]} 2. Nf3 {[%clk 0:03:00.1]} 2...
g6 {[%clk 0:03:00.4]} 3. c3 {[%clk 0:02:58.4]} 3... Nf6 {[%clk 0:02:59.8]} 4. e5
{[%clk 0:02:57.5]} 4... Nd5 {[%clk 0:03:00.2]} 5. h4 {[%clk 0:02:53.5]} 5... d6
{[%clk 0:02:54.5]} 6. h5 {[%clk 0:02:50.7]} 6... Bg7 {[%clk 0:02:29.1]} 7. d4
{[%clk 0:02:44.3]} 7... cxd4 {[%clk 0:02:26.1]} 8. h6 {[%clk 0:02:25]} 8... Bxe5
{[%clk 0:02:23]} 9. Nxe5 {[%clk 0:02:22]} 9... dxe5 {[%clk 0:02:23.9]} 10. cxd4
{[%clk 0:02:22.2]} 10... Nc6 {[%clk 0:02:16.5]} 11. dxe5 {[%clk 0:02:20.1]}
11... Bf5 {[%clk 0:02:12.8]} 12. Be2 {[%clk 0:02:09.5]} 12... Ndb4 {[%clk
0:02:10.6]} 13. O-O {[%clk 0:01:46.5]} 13... Qxd1 {[%clk 0:01:39.4]} 14. Bxd1
{[%clk 0:01:40.6]} 14... Nxe5 {[%clk 0:01:32.9]} 15. Nc3 {[%clk 0:01:34.1]}
15... O-O {[%clk 0:01:24.5]} 16. Re1 {[%clk 0:01:29.4]} 16... Nec6 {[%clk
0:00:59.4]} 17. Bg5 {[%clk 0:01:23.9]} 17... Rfe8 {[%clk 0:00:54.5]} 18. Nb5
{[%clk 0:01:20.2]} 18... Rac8 {[%clk 0:00:51.2]} 19. Bb3 {[%clk 0:01:17.8]}
19... Nc2 {[%clk 0:00:48.8]} 20. Bxc2 {[%clk 0:01:17.7]} 20... Bxc2 {[%clk
0:00:49.3]} 21. Rac1 {[%clk 0:01:18.2]} 21... Bf5 {[%clk 0:00:49.2]} 22. Re3
{[%clk 0:01:11.6]} 22... f6 {[%clk 0:00:48.5]} 23. Bh4 {[%clk 0:01:07.8]} 23...
a6 {[%clk 0:00:46.9]} 24. Nc3 {[%clk 0:01:08]} 24... Rcd8 {[%clk 0:00:45.9]} 25.
Rce1 {[%clk 0:01:04.2]} 25... Kf7 {[%clk 0:00:45.8]} 26. Na4 {[%clk 0:00:38.1]}
26... Nd4 {[%clk 0:00:42.5]} 27. Rc3 {[%clk 0:00:35.1]} 27... b5 {[%clk
0:00:37]} 28. Nc5 {[%clk 0:00:33.5]} 28... a5 {[%clk 0:00:32.9]} 29. Nb7 {[%clk
0:00:29.5]} 29... Ra8 {[%clk 0:00:25.7]} 30. Rc7 {[%clk 0:00:29.3]} 30... Ne6
{[%clk 0:00:24.8]} 31. Nd6+ {[%clk 0:00:25.4]} 31... Kf8 {[%clk 0:00:20.4]} 32.
Nxe8 {[%clk 0:00:26.3]} 32... Kxe8 {[%clk 0:00:18.4]} 33. Rb7 {[%clk 0:00:24.6]}
33... b4 {[%clk 0:00:18.6]} 34. f3 {[%clk 0:00:24.9]} 34... g5 {[%clk
0:00:17.7]} 35. Bf2 {[%clk 0:00:21.5]} 35... Kf7 {[%clk 0:00:15.5]} 36. g4
{[%clk 0:00:13.2]} 36... Bg6 {[%clk 0:00:15.5]} 37. Rd1 {[%clk 0:00:13.8]} 37...
Nf8 {[%clk 0:00:11]} 38. Bc5 {[%clk 0:00:13.2]} 38... Re8 {[%clk 0:00:11.3]} 39.
Ra7 {[%clk 0:00:13.1]} 39... Ne6 {[%clk 0:00:11.5]} 40. Be3 {[%clk 0:00:13.3]}
40... Rc8 {[%clk 0:00:10.8]} 41. Rxa5 {[%clk 0:00:13.6]} 41... Rc2 {[%clk
0:00:11]} 42. Ra7 {[%clk 0:00:12.2]} 42... Nf8 {[%clk 0:00:09]} 43. Bb6 {[%clk
0:00:08.3]} 43... Rxb2 {[%clk 0:00:08.9]} 44. Bc5 {[%clk 0:00:05]} 44... Re2
{[%clk 0:00:09.2]} 45. Bxb4 {[%clk 0:00:03.6]} 45... Re5 {[%clk 0:00:07.4]} 46.
Re1 {[%clk 0:00:04]} 46... Rxe1+ {[%clk 0:00:07.2]} 47. Bxe1 {[%clk 0:00:04.9]}
47... Ne6 {[%clk 0:00:07.7]} 48. Bb4 {[%clk 0:00:05.5]} 48... Nd4 {[%clk
0:00:07.6]} 49. Rxe7+ {[%clk 0:00:05.9]} 49... Kg8 {[%clk 0:00:08.1]} 50. Kf2
{[%clk 0:00:06.5]} 50... Nc2 {[%clk 0:00:08]} 51. Rg7+ {[%clk 0:00:06.7]} 51...
Kh8 {[%clk 0:00:07.5]} 52. Rb7 {[%clk 0:00:07.6]} 52... Nxb4 {[%clk 0:00:07.4]}
53. Rb8+ {[%clk 0:00:07.8]} 1-0